Workbook

Sheet Лист1
A1: Школа | C1: МБОУ Карабашская СОШ №1 | F1: Утвердил: | G1: должность | H1: директор
A2: Типовое примерное меню приготавливаемых блюд | G2: фамилия | H2: Г.Х.Хузина
A3: Возрастная категория | E3: 7-11 лет | G3: дата | H3: 1 | I3: 9 | J3: 2025
H4: день | I4: месяц | J4: год
A5: Неделя | B5: День недели | C5: Прием пищи | D5: Раздел меню | E5: Блюда | F5: Вес блюда, г | G5: Белки | H5: Жиры | I5: Углеводы | J5: Калорийность | K5: № рецептуры | L5: Цена
A6: 1 | B6: 1 | C6: Завтрак | D6: закуска | E6: Салат из моркови с яблоками | F6: 60 | G6: 1 | H6: 3 | I6: 6 | J6: 51
D7: гор.блюдо | E7: Котлеты из мяса птицы с макаронными изделиями отварными, с маслом сливочным | F7: 230 | G7: 12 | H7: 13 | I7: 32 | J7: 290 | K7: ттк | L7: 74.77
D8: гор.напиток | E8: Компот из сухофруктов (75С) | F8: 200 | G8: 1 | H8: 0 | I8: 22 | J8: 93 | K8: 349
D9: хлеб | E9: Хлеб ржаной | F9: 30 | G9: 2 | H9: 1 | I9: 12 | J9: 60
D10: хлеб | E10: Хлеб пшеничный | F10: 35 | G10: 2 | H10: 1 | I10: 13 | J10: 60
D13: итого | F13: =SUM(F6:F12) -> 555 | G13: =SUM(G6:G12) -> 18 | H13: =SUM(H6:H12) -> 18 | I13: =SUM(I6:I12) -> 85 | J13: =SUM(J6:J12) -> 554 | L13: =SUM(L7:L12) -> 74.77
A14: =A6 -> 1 | B14: =B6 -> 1 | C14: Завтрак 2 | D14: фрукты | L14: 0
D17: итого | F17: =SUM(F14:F16) -> 0 | G17: =SUM(G14:G16) -> 0 | H17: =SUM(H14:H16) -> 0 | I17: =SUM(I14:I16) -> 0 | J17: =SUM(J14:J16) -> 0 | L17: =SUM(L14:L16) -> 0
A18: =A6 -> 1 | B18: =B6 -> 1 | C18: Обед | D18: закуска | L18: 0
D19: 1 блюдо | L19: 0
D20: 2 блюдо | L20: 0
D21: гарнир | L21: 0
D22: напиток | L22: 0
D23: хлеб бел. | L23: 0
D24: хлеб черн. | L24: 0
L25: 0
L26: 0
D27: итого | F27: =SUM(F18:F26) -> 0 | G27: =SUM(G18:G26) -> 0 | H27: =SUM(H18:H26) -> 0 | I27: =SUM(I18:I26) -> 0 | J27: =SUM(J18:J26) -> 0 | L27: =SUM(L18:L26) -> 0
A28: =A6 -> 1 | B28: =B6 -> 1 | C28: Полдник | D28: булочное | L28: 0
D29: напиток | L29: 0
L30: 0
L31: 0
D32: итого | F32: =SUM(F28:F31) -> 0 | G32: =SUM(G28:G31) -> 0 | H32: =SUM(H28:H31) -> 0 | I32: =SUM(I28:I31) -> 0 | J32: =SUM(J28:J31) -> 0 | L32: =SUM(L28:L31) -> 0
A33: =A6 -> 1 | B33: =B6 -> 1 | C33: Ужин | D33: гор.блюдо | L33: 0
D34: гарнир | L34: 0
D35: напиток | L35: 0
D36: хлеб | L36: 0
L37: 0
L38: 0
D39: итого | F39: =SUM(F33:F38) -> 0 | G39: =SUM(G33:G38) -> 0 | H39: =SUM(H33:H38) -> 0 | I39: =SUM(I33:I38) -> 0 | J39: =SUM(J33:J38) -> 0 | L39: =SUM(L33:L38) -> 0
A40: =A6 -> 1 | B40: =B6 -> 1 | C40: Ужин 2 | D40: кисломол. | L40: 0
D41: булочное | L41: 0
D42: напиток | L42: 0
D43: фрукты | L43: 0
L44: 0
L45: 0
D46: итого | F46: =SUM(F40:F45) -> 0 | G46: =SUM(G40:G45) -> 0 | H46: =SUM(H40:H45) -> 0 | I46: =SUM(I40:I45) -> 0 | J46: =SUM(J40:J45) -> 0 | L46: =SUM(L40:L45) -> 0
A47: =A6 -> 1 | B47: =B6 -> 1 | C47: Итого за день: | F47: =F13+F17+F27+F32+F39+F46 -> 555 | G47: =G13+G17+G27+G32+G39+G46 -> 18 | H47: =H13+H17+H27+H32+H39+H46 -> 18 | I47: =I13+I17+I27+I32+I39+I46 -> 85 | J47: =J13+J17+J27+J32+J39+J46 -> 554 | L47: =L13+L17+L27+L32+L39+L46 -> 74.77
A48: 1 | B48: 2 | C48: Завтрак | D48: фрукты | E48: Плоды и ягоды свежие (яблоки) | F48: 100 | G48: 1 | H48: 1 | I48: 10 | J48: 47 | L48: 74.77
D49: гор.блюдо | E49: Сырники из творога с кашей молочной "Дружба" с маслом сливочным | F49: 215 | G49: 11 | H49: 12 | I49: 40 | J49: 325
D50: гор.напиток | E50: Кофейный напиток с молоком | F50: 200 | G50: 4 | H50: 3 | I50: 6 | J50: 61 | K50: №379
D51: хлеб | E51: Хлеб пшеничный | F51: 35 | G51: 2 | H51: 1 | I51: 13 | J51: 60
D52: хлеб | E52: Хлеб ржаной | F52: 30 | G52: 2 | H52: 1 | I52: 13 | J52: 60
D55: итого | F55: =SUM(F48:F54) -> 580 | G55: =SUM(G48:G54) -> 20 | H55: =SUM(H48:H54) -> 18 | I55: =SUM(I48:I54) -> 82 | J55: =SUM(J48:J54) -> 553 | L55: =SUM(L48:L54) -> 74.77
A56: =A48 -> 1 | B56: =B48 -> 2 | C56: Завтрак 2 | D56: фрукты
D59: итого | F59: =SUM(F56:F58) -> 0 | G59: =SUM(G56:G58) -> 0 | H59: =SUM(H56:H58) -> 0 | I59: =SUM(I56:I58) -> 0 | J59: =SUM(J56:J58) -> 0 | L59: =SUM(L56:L58) -> 0
A60: =A48 -> 1 | B60: =B48 -> 2 | C60: Обед | D60: закуска | L60: 0
D61: 1 блюдо | L61: 0
D62: 2 блюдо | L62: 0
D63: гарнир | L63: 0
D64: напиток | L64: 0
D65: хлеб бел. | L65: 0
D66: хлеб черн. | L66: 0
D69: итого | F69: =SUM(F60:F68) -> 0 | G69: =SUM(G60:G68) -> 0 | H69: =SUM(H60:H68) -> 0 | I69: =SUM(I60:I68) -> 0 | J69: =SUM(J60:J68) -> 0 | L69: =SUM(L60:L68) -> 0
A70: =A48 -> 1 | B70: =B48 -> 2 | C70: Полдник | D70: булочное | L70: 0
D71: напиток | L71: 0
D74: итого | F74: =SUM(F70:F73) -> 0 | G74: =SUM(G70:G73) -> 0 | H74: =SUM(H70:H73) -> 0 | I74: =SUM(I70:I73) -> 0 | J74: =SUM(J70:J73) -> 0 | L74: =SUM(L70:L73) -> 0
A75: =A48 -> 1 | B75: =B48 -> 2 | C75: Ужин | D75: гор.блюдо | L75: 0
D76: гарнир | L76: 0
D77: напиток | L77: 0
D78: хлеб | L78: 0
D81: итого | F81: =SUM(F75:F80) -> 0 | G81: =SUM(G75:G80) -> 0 | H81: =SUM(H75:H80) -> 0 | I81: =SUM(I75:I80) -> 0 | J81: =SUM(J75:J80) -> 0 | L81: =SUM(L75:L80) -> 0
A82: =A48 -> 1 | B82: =B48 -> 2 | C82: Ужин 2 | D82: кисломол. | L82: 0
D83: булочное | L83: 0
D84: напиток | L84: 0
D85: фрукты | L85: 0
D88: итого | F88: =SUM(F82:F87) -> 0 | G88: =SUM(G82:G87) -> 0 | H88: =SUM(H82:H87) -> 0 | I88: =SUM(I82:I87) -> 0 | J88: =SUM(J82:J87) -> 0 | L88: =SUM(L82:L87) -> 0
A89: =A48 -> 1 | B89: =B48 -> 2 | C89: Итого за день: | F89: =F55+F59+F69+F74+F81+F88 -> 580 | G89: =G55+G59+G69+G74+G81+G88 -> 20 | H89: =H55+H59+H69+H74+H81+H88 -> 18 | I89: =I55+I59+I69+I74+I81+I88 -> 82 | J89: =J55+J59+J69+J74+J81+J88 -> 553 | L89: =L55+L59+L69+L74+L81+L88 -> 74.77
A90: 1 | B90: 3 | C90: Завтрак | D90: гор.блюдо | E90: Гуляш из говядины с кашей гречневой рассыпчатой, сыр порционно | F90: 260 | G90: 18 | H90: 21 | I90: 51 | J90: 470 | K90: №171,260 | L90: 74.77
D91: гор.напиток | E91: Чай с сахаром, с лимоном | F91: 200 | G91: 1 | H91: 0 | I91: 11 | J91: 42 | K91: №377
D92: хлеб | E92: Хлеб пшеничный | F92: 35 | G92: 2 | H92: 1 | I92: 13 | J92: 60
D93: хлеб | E93: Хлеб ржаной | F93: 50 | G93: 4 | H93: 1 | I93: 20 | J93: 100
D96: итого | F96: =SUM(F90:F95) -> 545 | G96: =SUM(G90:G95) -> 25 | H96: =SUM(H90:H95) -> 23 | I96: =SUM(I90:I95) -> 95 | J96: =SUM(J90:J95) -> 672 | L96: =SUM(L90:L95) -> 74.77
A97: =A90 -> 1 | B97: =B90 -> 3 | C97: Завтрак 2 | D97: фрукты
D100: итого | F100: =SUM(F97:F99) -> 0 | G100: =SUM(G97:G99) -> 0 | H100: =SUM(H97:H99) -> 0 | I100: =SUM(I97:I99) -> 0 | J100: =SUM(J97:J99) -> 0 | L100: =SUM(F100:K100) -> 0
A101: =A90 -> 1 | B101: =B90 -> 3 | C101: Обед | D101: закуска
D102: 1 блюдо
D103: 2 блюдо
D104: гарнир
D105: напиток
D106: хлеб бел.
D107: хлеб черн.
D110: итого | F110: =SUM(F101:F109) -> 0 | G110: =SUM(G101:G109) -> 0 | H110: =SUM(H101:H109) -> 0 | I110: =SUM(I101:I109) -> 0 | J110: =SUM(J101:J109) -> 0 | L110: =SUM(L101:L109) -> 0
A111: =A90 -> 1 | B111: =B90 -> 3 | C111: Полдник | D111: булочное
D112: напиток
D115: итого | F115: =SUM(F111:F114) -> 0 | G115: =SUM(G111:G114) -> 0 | H115: =SUM(H111:H114) -> 0 | I115: =SUM(I111:I114) -> 0 | J115: =SUM(J111:J114) -> 0 | L115: =SUM(L111:L114) -> 0
A116: =A90 -> 1 | B116: =B90 -> 3 | C116: Ужин | D116: гор.блюдо
D117: гарнир
D118: напиток
D119: хлеб
D122: итого | F122: =SUM(F116:F121) -> 0 | G122: =SUM(G116:G121) -> 0 | H122: =SUM(H116:H121) -> 0 | I122: =SUM(I116:I121) -> 0 | J122: =SUM(J116:J121) -> 0 | L122: =SUM(L116:L121) -> 0
A123: =A90 -> 1 | B123: =B90 -> 3 | C123: Ужин 2 | D123: кисломол. | L123: 0
D124: булочное | L124: 0
D125: напиток | L125: 0
D126: фрукты | L126: 0
D129: итого | F129: =SUM(F123:F128) -> 0 | G129: =SUM(G123:G128) -> 0 | H129: =SUM(H123:H128) -> 0 | I129: =SUM(I123:I128) -> 0 | J129: =SUM(J123:J128) -> 0 | L129: =SUM(L123:L128) -> 0
A130: =A90 -> 1 | B130: =B90 -> 3 | C130: Итого за день: | F130: =F96+F100+F110+F115+F122+F129 -> 545 | G130: =G96+G100+G110+G115+G122+G129 -> 25 | H130: =H96+H100+H110+H115+H122+H129 -> 23 | I130: =I96+I100+I110+I115+I122+I129 -> 95 | J130: =J96+J100+J110+J115+J122+J129 -> 672 | L130: 69.43
A131: 1 | B131: 4 | C131: Завтрак | D131: закуска | E131: Свекла отварная,дольками | F131: 60 | G131: 1 | H131: 0 | I131: 6 | J131: 29 | L131: 74.77
D132: гор.блюдо | E132: Птица запеченная с картофельным пюре, с маслом сливочным | F132: 253 | G132: 16 | H132: 20 | I132: 20 | J132: 343 | K132: №312
D133: гор.напиток | E133: Компот из сухофруктов (75С) | F133: 200 | G133: 1 | H133: 0 | I133: 22 | J133: 93 | K133: №349
D134: хлеб | E134: Хлеб ржаной | F134: 40 | G134: 3 | H134: 1 | I134: 16 | J134: 80
D135: хлеб | E135: Хлеб пшеничный | F135: 30 | G135: 3 | H135: 1 | I135: 15 | J135: 71
D138: итого | F138: =SUM(F131:F137) -> 583 | G138: =SUM(G131:G137) -> 24 | H138: =SUM(H131:H137) -> 22 | I138: =SUM(I131:I137) -> 79 | J138: =SUM(J131:J137) -> 616 | L138: =SUM(L131:L137) -> 74.77
A139: =A131 -> 1 | B139: =B131 -> 4 | C139: Завтрак 2 | D139: фрукты
D142: итого | F142: =SUM(F139:F141) -> 0 | G142: =SUM(G139:G141) -> 0 | H142: =SUM(H139:H141) -> 0 | I142: =SUM(I139:I141) -> 0 | J142: =SUM(J139:J141) -> 0 | L142: =SUM(L139:L141) -> 0
A143: =A131 -> 1 | B143: =B131 -> 4 | C143: Обед | D143: закуска
D144: 1 блюдо
D145: 2 блюдо
D146: гарнир
D147: напиток
D148: хлеб бел.
D149: хлеб черн.
D152: итого | F152: =SUM(F143:F151) -> 0 | G152: =SUM(G143:G151) -> 0 | H152: =SUM(H143:H151) -> 0 | I152: =SUM(I143:I151) -> 0 | J152: =SUM(J143:J151) -> 0 | L152: =SUM(L143:L151) -> 0
A153: =A131 -> 1 | B153: =B131 -> 4 | C153: Полдник | D153: булочное
D154: напиток
D157: итого | F157: =SUM(F153:F156) -> 0 | G157: =SUM(G153:G156) -> 0 | H157: =SUM(H153:H156) -> 0 | I157: =SUM(I153:I156) -> 0 | J157: =SUM(J153:J156) -> 0 | L157: =SUM(L153:L156) -> 0
A158: =A131 -> 1 | B158: =B131 -> 4 | C158: Ужин | D158: гор.блюдо
D159: гарнир
D160: напиток
D161: хлеб
D164: итого | F164: =SUM(F158:F163) -> 0 | G164: =SUM(G158:G163) -> 0 | H164: =SUM(H158:H163) -> 0 | I164: =SUM(I158:I163) -> 0 | J164: =SUM(J158:J163) -> 0 | L164: =SUM(L158:L163) -> 0
A165: =A131 -> 1 | B165: =B131 -> 4 | C165: Ужин 2 | D165: кисломол.
D166: булочное
D167: напиток
D168: фрукты
D171: итого | F171: =SUM(F165:F170) -> 0 | G171: =SUM(G165:G170) -> 0 | H171: =SUM(H165:H170) -> 0 | I171: =SUM(I165:I170) -> 0 | J171: =SUM(J165:J170) -> 0 | L171: =SUM(L165:L170) -> 0
A172: =A131 -> 1 | B172: =B131 -> 4 | C172: Итого за день: | F172: =F138+F142+F152+F157+F164+F171 -> 583 | G172: =G138+G142+G152+G157+G164+G171 -> 24 | H172: =H138+H142+H152+H157+H164+H171 -> 22 | I172: =I138+I142+I152+I157+I164+I171 -> 79 | J172: =J138+J142+J152+J157+J164+J171 -> 616 | L172: =L138+L142+L152+L157+L164+L171 -> 74.77
A173: 1 | B173: 5 | C173: Завтрак | D173: гор.блюдо | E173: тефтели мясные в сметанно-томатном соусе, макаронные изделия отварные с маслом сливочным, сыр порционно | F173: 300 | G173: 18 | H173: 20 | I173: 41 | J173: 353 | K173: №279,331 | L173: 74.77
D174: гор.напиток | E174: Напиток из свежих фруктов (75С) | F174: 200 | G174: 1 | H174: 1 | I174: 22 | J174: 104
D175: хлеб | E175: Хлеб пшеничный | F175: 45 | G175: 4 | H175: 1 | I175: 23 | J175: 106
D176: хлеб | E176: Хлеб ржаной | F176: 30 | G176: 2 | H176: 1 | I176: 12 | J176: 60
D180: итого | F180: =SUM(F173:F179) -> 575 | G180: =SUM(G173:G179) -> 25 | H180: =SUM(H173:H179) -> 23 | I180: =SUM(I173:I179) -> 98 | J180: =SUM(J173:J179) -> 623 | L180: =SUM(L173:L179) -> 74.77
A181: =A173 -> 1 | B181: =B173 -> 5 | C181: Завтрак 2 | D181: фрукты
D184: итого | F184: =SUM(F181:F183) -> 0 | G184: =SUM(G181:G183) -> 0 | H184: =SUM(H181:H183) -> 0 | I184: =SUM(I181:I183) -> 0 | J184: =SUM(J181:J183) -> 0 | L184: =SUM(L181:L183) -> 0
A185: =A173 -> 1 | B185: =B173 -> 5 | C185: Обед | D185: закуска
D186: 1 блюдо
D187: 2 блюдо
D188: гарнир
D189: напиток
D190: хлеб бел.
D191: хлеб черн.
D194: итого | F194: =SUM(F185:F193) -> 0 | G194: =SUM(G185:G193) -> 0 | H194: =SUM(H185:H193) -> 0 | I194: =SUM(I185:I193) -> 0 | J194: =SUM(J185:J193) -> 0 | L194: =SUM(L185:L193) -> 0
A195: =A173 -> 1 | B195: =B173 -> 5 | C195: Полдник | D195: булочное
D196: напиток
D199: итого | F199: =SUM(F195:F198) -> 0 | G199: =SUM(G195:G198) -> 0 | H199: =SUM(H195:H198) -> 0 | I199: =SUM(I195:I198) -> 0 | J199: =SUM(J195:J198) -> 0 | L199: =SUM(L195:L198) -> 0
A200: =A173 -> 1 | B200: =B173 -> 5 | C200: Ужин | D200: гор.блюдо
D201: гарнир
D202: напиток
D203: хлеб
D206: итого | F206: =SUM(F200:F205) -> 0 | G206: =SUM(G200:G205) -> 0 | H206: =SUM(H200:H205) -> 0 | I206: =SUM(I200:I205) -> 0 | J206: =SUM(J200:J205) -> 0 | L206: =SUM(L200:L205) -> 0
A207: =A173 -> 1 | B207: =B173 -> 5 | C207: Ужин 2 | D207: кисломол.
D208: булочное
D209: напиток
D210: фрукты
D213: итого | F213: =SUM(F207:F212) -> 0 | G213: =SUM(G207:G212) -> 0 | H213: =SUM(H207:H212) -> 0 | I213: =SUM(I207:I212) -> 0 | J213: =SUM(J207:J212) -> 0 | L213: =SUM(L207:L212) -> 0
A214: =A173 -> 1 | B214: =B173 -> 5 | C214: Итого за день: | F214: =F180+F184+F194+F199+F206+F213 -> 575 | G214: =G180+G184+G194+G199+G206+G213 -> 25 | H214: =H180+H184+H194+H199+H206+H213 -> 23 | I214: =I180+I184+I194+I199+I206+I213 -> 98 | J214: =J180+J184+J194+J199+J206+J213 -> 623 | L214: =L180+L184+L194+L199+L206+L213 -> 74.77
A215: 1 | B215: 6 | C215: Завтрак | D215: закуска | E215: Салат из свежей капусты с морковью | F215: 80 | G215: 1 | H215: 3 | I215: 6 | J215: 49 | K215: ттк,№47 | L215: 74.77
D216: гор.блюдо | E216: Биточки рыбные с рисом отварным рассыпчатым, с маслом сливочным | F216: 228 | G216: 13 | H216: 13 | I216: 44 | J216: 305
D217: гор.напиток | E217: Чай с сахаром,с лимоном | F217: 200 | G217: 1 | H217: 0 | I217: 11 | J217: 42 | K217: №377
D218: хлеб | E218: Хлеб ржаной | F218: 30 | G218: 2 | H218: 1 | I218: 12 | J218: 60
D219: хлеб | E219: Хлеб пшеничный | F219: 30 | G219: 3 | H219: 1 | I219: 15 | J219: 71
D222: итого | F222: =SUM(F215:F221) -> 568 | G222: =SUM(G215:G221) -> 20 | H222: =SUM(H215:H221) -> 18 | I222: =SUM(I215:I221) -> 88 | J222: =SUM(J215:J221) -> 527 | L222: =SUM(L215:L221) -> 74.77
A223: =A215 -> 1 | B223: =B215 -> 6 | C223: Завтрак 2 | D223: фрукты
D226: итого | F226: =SUM(F223:F225) -> 0 | G226: =SUM(G223:G225) -> 0 | H226: =SUM(H223:H225) -> 0 | I226: =SUM(I223:I225) -> 0 | J226: =SUM(J223:J225) -> 0 | L226: =SUM(L223:L225) -> 0
A227: =A215 -> 1 | B227: =B215 -> 6 | C227: Обед | D227: закуска
D228: 1 блюдо
D229: 2 блюдо
D230: гарнир
D231: напиток
D232: хлеб бел.
D233: хлеб черн.
D236: итого | F236: =SUM(F227:F235) -> 0 | G236: =SUM(G227:G235) -> 0 | H236: =SUM(H227:H235) -> 0 | I236: =SUM(I227:I235) -> 0 | J236: =SUM(J227:J235) -> 0 | L236: =SUM(L227:L235) -> 0
A237: =A215 -> 1 | B237: =B215 -> 6 | C237: Полдник | D237: булочное
D238: напиток
D241: итого | F241: =SUM(F237:F240) -> 0 | G241: =SUM(G237:G240) -> 0 | H241: =SUM(H237:H240) -> 0 | I241: =SUM(I237:I240) -> 0 | J241: =SUM(J237:J240) -> 0 | L241: =SUM(L237:L240) -> 0
A242: =A215 -> 1 | B242: =B215 -> 6 | C242: Ужин | D242: гор.блюдо
D243: гарнир
D244: напиток
D245: хлеб
D248: итого | F248: =SUM(F242:F247) -> 0 | G248: =SUM(G242:G247) -> 0 | H248: =SUM(H242:H247) -> 0 | I248: =SUM(I242:I247) -> 0 | J248: =SUM(J242:J247) -> 0 | L248: =SUM(L242:L247) -> 0
A249: =A215 -> 1 | B249: =B215 -> 6 | C249: Ужин 2 | D249: кисломол.
D250: булочное
D251: напиток
D252: фрукты
D255: итого | F255: =SUM(F249:F254) -> 0 | G255: =SUM(G249:G254) -> 0 | H255: =SUM(H249:H254) -> 0 | I255: =SUM(I249:I254) -> 0 | J255: =SUM(J249:J254) -> 0 | L255: =SUM(L249:L254) -> 0
A256: =A215 -> 1 | B256: =B215 -> 6 | C256: Итого за день: | F256: =F222+F226+F236+F241+F248+F255 -> 568 | G256: =G222+G226+G236+G241+G248+G255 -> 20 | H256: =H222+H226+H236+H241+H248+H255 -> 18 | I256: =I222+I226+I236+I241+I248+I255 -> 88 | J256: =J222+J226+J236+J241+J248+J255 -> 527 | L256: =L222+L226+L236+L241+L248+L255 -> 74.77
A257: 1 | B257: 7 | C257: Завтрак | D257: гор.блюдо
D259: гор.напиток
D260: хлеб
D261: фрукты
D264: итого | F264: =SUM(F257:F263) -> 0 | G264: =SUM(G257:G263) -> 0 | H264: =SUM(H257:H263) -> 0 | I264: =SUM(I257:I263) -> 0 | J264: =SUM(J257:J263) -> 0 | L264: =SUM(L257:L263) -> 0
A265: =A257 -> 1 | B265: =B257 -> 7 | C265: Завтрак 2 | D265: фрукты
D268: итого | F268: =SUM(F265:F267) -> 0 | G268: =SUM(G265:G267) -> 0 | H268: =SUM(H265:H267) -> 0 | I268: =SUM(I265:I267) -> 0 | J268: =SUM(J265:J267) -> 0 | L268: =SUM(L265:L267) -> 0
A269: =A257 -> 1 | B269: =B257 -> 7 | C269: Обед | D269: закуска
D270: 1 блюдо
... 229 more rows
